fUST/lending_fUST_20260220
["ID","MTS","AMOUNT","RATE_DAILY","PERIOD"]
[405999037,1771517243200,-2568.31979268,7.893e-05,2]
[405999038,1771517253096,-1057.98676532,7.814e-05,2]
[405999039,1771517347239,-931.3452108,7.192e-05,2]
[405999040,1771517347275,-5000.0,7.736e-05,2]
[405999041,1771517347308,-3942.01323468,7.814e-05,2]
[405999042,1771517347345,-300.0,7.932e-05,2]
[405999043,1771517347379,-150.0,7.933e-05,2]
[405999044,1771517347416,-1200.0,7.972e-05,2]
[405999045,1771517347451,-218.5455714,8.217e-05,2]
[405999046,1771517347484,-535.0,8.217e-05,2]
[405999047,1771517347518,-1112.30298281,8.378e-05,2]
[405999048,1771517347553,-500.0,8.378e-05,2]
[405999049,1771517347586,-50000.0,8.379e-05,2]
[405999050,1771517347629,-300.0,8.38e-05,2]
[405999051,1771517347664,-300.0,8.38e-05,2]
[405999052,1771517347702,-300.0,8.38e-05,2]
[405999053,1771517347737,-300.0,8.38e-05,2]
[405999054,1771517347770,-300.0,8.38e-05,2]
[405999055,1771517347801,-300.0,8.38e-05,2]
[405999056,1771517347835,-300.0,8.38e-05,2]
[405999057,1771517347866,-300.0,8.38e-05,2]
[405999058,1771517347898,-300.0,8.38e-05,2]
[405999059,1771517347931,-300.0,8.38e-05,2]
[405999060,1771517347962,-300.0,8.38e-05,2]
[405999061,1771517347994,-300.0,8.38e-05,2]
[405999062,1771517348029,-300.0,8.38e-05,2]
[405999063,1771517348064,-300.0,8.38e-05,2]
[405999064,1771517348100,-300.0,8.38e-05,2]
[405999065,1771517348139,-600.0,8.547e-05,2]
[405999066,1771517348174,-420.0,8.725e-05,2]
[405999067,1771517348211,-1680.0,8.769e-05,2]
[405999068,1771517348243,-17317.0761887,9.075e-05,2]
[405999069,1771517348276,-170.604504,9.233e-05,2]
[405999070,1771517348312,-720.0,9.401e-05,2]
[405999071,1771517348350,-587.0,9.597e-05,2]
[405999072,1771517348386,-177.0,9.933e-05,2]
[405999073,1771517348424,-2656.838806,0.00010061,2]
[405999074,1771517348464,-864.0,0.00010341,2]
[405999075,1771517348507,-823.0,0.00010557,2]
[405999076,1771517348541,-1370.2688399,0.00010863,2]
[405999077,1771517348578,-1000.0,0.00011375,2]
[405999078,1771517348617,-197.0,0.00011613,2]
[405999079,1771517348662,-8594.81717808,0.00011761,2]
[405999080,1771517348701,-204.0,0.00011933,2]
[405999081,1771517348738,-1000.0,0.00012513,2]
[405999082,1771517348774,-244.0,0.00012513,2]
[405999083,1771517348807,-4435.33604122,0.000129,2]
[405999084,1771517348840,-500.0,0.00013273,2]
[405999085,1771517348871,-500.0,0.00013273,2]
[405999086,1771517348900,-500.0,0.00013273,2]
[405999087,1771517348941,-500.0,0.00013273,2]
[405999088,1771517348980,-500.0,0.00013273,2]
[405999089,1771517349016,-500.0,0.00013273,2]
[405999090,1771517349053,-1284.41578183,0.00013694,2]
[405999091,1771517349090,-500.0,0.00013698,2]
[405999092,1771517349128,-500.0,0.00013698,2]
[405999093,1771517349165,-500.0,0.00013698,2]
[405999094,1771517349197,-500.0,0.00013698,2]
[405999095,1771517349231,-500.0,0.00013698,2]
[405999096,1771517349263,-500.0,0.00013698,2]
[405999097,1771517349302,-500.0,0.00013698,2]
[405999098,1771517349335,-500.0,0.00013698,2]
[405999099,1771517349370,-500.0,0.00013698,2]
[405999100,1771517349404,-500.0,0.00013698,2]
[405999101,1771517349439,-500.0,0.00013698,2]
[405999102,1771517349478,-500.0,0.00013698,2]
[405999103,1771517349513,-500.0,0.00013698,2]
[405999104,1771517349545,-500.0,0.00013698,2]
[405999105,1771517349576,-500.0,0.00013698,2]
[405999106,1771517349610,-245.97689794,0.00013698,2]
[405999107,1771517349644,-500.0,0.00013698,2]
[405999108,1771517349680,-500.0,0.00013698,2]
[405999109,1771517349712,-213.5648767,0.00013698,2]
[405999110,1771517349746,-27877.63752707,0.00013699,2]
[405999111,1771517349776,-151.0,0.00013699,4]
[405999112,1771517349805,-317.24757628,0.00013699,2]
[405999113,1771517349836,-501.97113606,0.00013699,2]
[405999114,1771517349866,-500.0,0.00013699,2]
[405999115,1771517349895,-500.0,0.00013699,2]
[405999116,1771517349929,-500.0,0.00013699,2]
[405999117,1771517349959,-500.0,0.00013699,2]
[405999118,1771517349997,-505.20262571,0.00013699,2]
[405999119,1771517350033,-1000.0,0.00013764,2]
[405999120,1771517350069,-492.0,0.00013764,2]
[405999121,1771517350102,-1000.0,0.0001378,2]
[405999122,1771517350135,-500.0,0.00013821,2]
[405999123,1771517350302,-1000.0,0.00013821,2]
[405999124,1771517350338,-966.78944837,0.00013821,2]
[405999125,1771517350383,-379.22880978,0.00013821,2]
[405999126,1771517350420,-1000.0,0.00013821,2]
[405999127,1771517350456,-231.0,0.00013933,2]
[405999128,1771517350496,-1000.0,0.00014,2]
[405999129,1771517350530,-1000.0,0.00014,2]
[405999130,1771517350562,-1000.0,0.00014,2]
[405999131,1771517350595,-1000.0,0.00014,2]
[405999132,1771517350629,-2328.03041465,0.00014055,2]
[405999133,1771517369090,-1426.27074382,0.00013426,2]
[405999134,1771517377574,153.4608292,8.378e-05,2]
[405999168,1771517431488,-247.5738048,8.378e-05,2]
[405999169,1771517431498,-538.0,8.378e-05,2]
[405999170,1771517431508,-346.5391708,8.378e-05,2]
[405999171,1771517431517,-500.0,8.378e-05,2]
[405999173,1771517431526,-500.0,8.378e-05,2]
[405999175,1771517431535,-500.0,8.378e-05,2]
[405999177,1771517431544,-258.98348843,8.378e-05,2]
[405999186,1771517431621,-241.01651157,8.378e-05,2]
[405999188,1771517431630,-500.0,8.378e-05,2]
[405999190,1771517431639,-500.0,8.378e-05,2]
[405999192,1771517431649,-500.0,8.378e-05,2]
[405999194,1771517431658,-500.0,8.378e-05,2]
[405999196,1771517431667,-500.0,8.378e-05,2]
[405999198,1771517431676,-500.0,8.378e-05,2]
[405999200,1771517431686,-500.0,8.378e-05,2]
[405999202,1771517431695,-500.0,8.378e-05,2]
[405999204,1771517431705,-500.0,8.378e-05,2]
[405999206,1771517431715,-500.0,8.378e-05,2]
[405999222,1771517431850,-178.98594119,8.378e-05,2]
[405999224,1771517431860,-500.0,8.378e-05,2]
[405999226,1771517431870,-500.0,8.378e-05,2]
[405999228,1771517431879,-500.0,8.378e-05,2]
[405999230,1771517431889,-500.0,8.378e-05,2]
[405999232,1771517431898,-500.0,8.378e-05,2]
[405999234,1771517431907,-500.0,8.378e-05,2]
[405999236,1771517431915,-384.5522851,8.378e-05,2]
[405999238,1771517431925,-500.0,8.378e-05,2]
[405999240,1771517431934,-500.0,8.378e-05,2]
[405999242,1771517431943,-305.68394146,8.378e-05,2]
[405999336,1771517439985,-194.31605854,8.378e-05,2]
[405999338,1771517439995,-500.0,8.378e-05,2]
[405999340,1771517440004,-500.0,8.378e-05,2]
[405999342,1771517440013,-500.0,8.378e-05,2]
[405999344,1771517440023,-500.0,8.378e-05,2]
[405999347,1771517440032,-634.67455233,8.378e-05,2]
[405999349,1771517440041,-500.0,8.378e-05,2]
[405999350,1771517440049,-500.0,8.378e-05,2]
[405999352,1771517440058,-500.0,8.378e-05,2]
[405999354,1771517440067,-500.0,8.378e-05,2]
[405999356,1771517440076,-500.0,8.378e-05,2]
[405999358,1771517440085,-500.0,8.378e-05,2]
[405999360,1771517440094,-500.0,8.378e-05,2]
[405999362,1771517440104,-500.0,8.378e-05,2]
[405999364,1771517440113,-500.0,8.378e-05,2]
[405999366,1771517440122,-500.0,8.378e-05,2]
[405999368,1771517440132,-500.0,8.378e-05,2]
[405999370,1771517440141,-500.0,8.378e-05,2]
[405999372,1771517440151,-500.0,8.378e-05,2]
[405999374,1771517440160,-237.36118139,8.378e-05,2]
[405999376,1771517440169,-500.0,8.378e-05,2]
[405999378,1771517440179,-500.0,8.378e-05,2]
[405999380,1771517440189,-411.81765307,8.378e-05,2]
[405999382,1771517440198,-500.0,8.378e-05,2]
[405999384,1771517440207,-500.0,8.378e-05,2]
[405999386,1771517440216,-500.0,8.378e-05,2]
[405999388,1771517440225,-500.0,8.378e-05,2]
[405999390,1771517440234,-38675.45343801,8.378e-05,2]
[405999392,1771517440243,-300.0,8.545e-05,2]
[405999394,1771517440252,-300.0,8.545e-05,2]
[405999396,1771517440261,-300.0,8.545e-05,2]
[405999398,1771517440271,-300.0,8.545e-05,2]
[405999400,1771517440281,-300.0,8.545e-05,2]
[405999402,1771517440290,-300.0,8.545e-05,2]
[405999404,1771517440299,-300.0,8.545e-05,2]
[405999406,1771517440309,-300.0,8.545e-05,2]
[405999408,1771517440319,-300.0,8.545e-05,2]
[405999410,1771517440328,-300.0,8.545e-05,2]
[405999412,1771517440338,-300.0,8.545e-05,2]
[405999413,1771517440347,-300.0,8.545e-05,2]
[405999415,1771517440357,-300.0,8.545e-05,2]
[405999417,1771517440371,-300.0,8.545e-05,2]
[405999419,1771517440380,-300.0,8.545e-05,2]
[405999421,1771517440389,-600.0,8.545e-05,2]
[405999423,1771517440398,-720.0,9.399e-05,2]
[405999425,1771517440408,-864.0,0.00010339,2]
[405999427,1771517440417,-1000.0,0.00011373,2]
[405999428,1771517440427,-1000.0,0.0001251,2]
[405999429,1771517440437,-244.0,0.0001251,2]
[405999430,1771517440446,-477.88579833,0.00013273,2]
[405999431,1771517440457,-500.0,0.00013273,2]
[405999432,1771517440466,-2488.64631012,0.00013352,2]
[405999504,1771517445912,-46.13295303,0.00013352,2]
[405999506,1771517445921,-3573.72925618,0.00013426,2]
[405999508,1771517445930,-5000.0,0.00013562,2]
[405999510,1771517445940,-500.0,0.00013698,2]
[405999512,1771517445948,-500.0,0.00013698,2]
[405999514,1771517445957,-500.0,0.00013698,2]
[405999516,1771517445966,-261.91,0.00013698,2]
[405999518,1771517445975,-500.0,0.00013699,2]
[405999520,1771517445984,-500.0,0.00013699,2]
[405999522,1771517445993,-500.0,0.00013699,2]
[405999524,1771517446002,-500.0,0.00013699,2]
[405999526,1771517446012,-500.0,0.00013699,2]
[405999527,1771517446023,-500.0,0.00013699,2]
[405999529,1771517446033,-500.0,0.00013699,2]
[405999532,1771517446042,-500.0,0.00013699,2]
[405999534,1771517446052,-500.0,0.00013699,2]
[405999536,1771517446062,-500.0,0.00013699,2]
[405999538,1771517446072,-500.0,0.00013699,2]
[405999539,1771517446082,-500.0,0.00013699,2]
[405999541,1771517446091,-500.0,0.00013699,2]
[405999543,1771517446100,-500.0,0.00013699,2]
[405999545,1771517446109,-500.0,0.00013699,2]
[405999547,1771517446118,-500.0,0.00013699,2]
[405999549,1771517446128,-500.0,0.00013699,2]
[405999551,1771517446138,-500.0,0.00013699,2]
[405999553,1771517446147,-500.0,0.00013699,2]
[405999555,1771517446156,-500.0,0.00013699,2]
[405999557,1771517446165,-500.0,0.00013699,2]
[405999558,1771517446174,-500.0,0.00013699,2]
[405999559,1771517446185,-500.0,0.00013699,2]
[405999560,1771517446194,-500.0,0.00013699,2]
[405999561,1771517446203,-500.0,0.00013699,2]
[405999562,1771517446212,-500.0,0.00013699,2]
[405999563,1771517446221,-178.77611397,0.00013699,2]
[405999564,1771517446244,-321.22388603,0.00013699,2]
[405999565,1771517446253,-500.0,0.00013699,2]
[405999566,1771517446263,-500.0,0.00013699,2]
[405999567,1771517446272,-500.0,0.00013699,2]
[405999568,1771517446282,-132.77611397,0.00013699,2]
[405999569,1771517446295,-367.22388603,0.00013699,2]
[405999570,1771517446305,-411.12971394,0.00013699,2]
[405999571,1771517446316,-88.87028606,0.00013699,2]
[405999572,1771517446327,-500.0,0.00013699,2]
[405999573,1771517446337,-500.0,0.00013699,2]
[405999574,1771517446347,-307.5940988,0.00013699,2]
[405999575,1771517446356,-500.0,0.00013699,2]
[405999576,1771517446371,-500.0,0.00013699,2]
[405999577,1771517446381,-990.28561514,0.00013761,2]
[405999578,1771517446394,-9.71438486,0.00013761,2]
[405999579,1771517446404,-492.0,0.00013761,2]
[405999580,1771517446414,-1000.0,0.00013821,2]
[405999581,1771517446424,-16436.6069729,0.00014145,2]
[405999582,1771517446434,-1000.0,0.00014247,2]
[405999583,1771517446445,-210.97282276,0.00014247,2]
[405999584,1771517446454,-1079.0195383,0.00014247,2]
[405999585,1771517446465,-1000.0,0.00014247,2]
[405999586,1771517446476,-500.0,0.00014247,2]
[405999587,1771517446486,-1500.0,0.00014368,2]
[405999588,1771517446495,-799.01983641,0.00014368,2]
[405999589,1771517446504,-524.86244096,0.0001452,2]
[405999590,1771517446514,-197.85314018,0.000149,2]
[405999591,1771517446524,-179.56612654,0.00014916,2]
[405999592,1771517446535,-718.26450615,0.00014916,2]
[405999593,1771517446544,-2000.0,0.00014916,2]
[405999594,1771517446554,-214.68754873,0.00015036,2]
[405999595,1771517446564,-1000.0,0.00015137,2]
[405999596,1771517446574,-791.0,0.00015137,2]
[405999597,1771517446583,-1512.96938194,0.00015464,2]
[405999598,1771517446592,-9458.81101506,0.000156,2]
[405999599,1771517446604,-6424.1783256,0.000156,2]
[405999600,1771517446613,-258.0,0.00015933,2]
[405999601,1771517446622,-1193.2313835,0.00015984,2]
[405999602,1771517446631,-150.0,0.00016438,2]
[405999603,1771517446640,-1000.0,0.00016651,2]
[405999604,1771517446651,-1000.0,0.00016651,2]
[405999605,1771517446660,-151.0,0.000169,2]
[405999606,1771517446669,-250.0,0.00016986,2]
[405999607,1771517446679,-3037.42987762,0.0001699,2]
[405999616,1771518426175,-3359.88896471,7.731e-05,2]
[405999617,1771518545342,-5000.0,7.577e-05,2]
[405999618,1771518545365,-150.0,7.616e-05,2]
[405999619,1771518545387,-300.0,7.653e-05,2]
[405999620,1771518545408,-5000.0,7.654e-05,2]
[405999621,1771518545430,-1200.0,7.808e-05,2]
[405999622,1771518545451,-300.0,7.808e-05,2]
[405999623,1771518545475,-300.0,7.926e-05,2]
[405999624,1771518545496,-300.0,7.927e-05,2]
[405999625,1771518545517,-420.0,8.198e-05,2]
[405999626,1771518545537,-158.0,8.219e-05,2]
[405999627,1771518545561,-300.0,8.544e-05,2]
[405999628,1771518545584,-300.0,8.544e-05,2]
[405999629,1771518545606,-300.0,8.544e-05,2]
[405999630,1771518545629,-300.0,8.544e-05,2]
[405999631,1771518545652,-300.0,8.544e-05,2]
[405999632,1771518545673,-300.0,8.544e-05,2]
[405999633,1771518545697,-300.0,8.544e-05,2]
[405999634,1771518545720,-300.0,8.544e-05,2]
[405999635,1771518545744,-300.0,8.544e-05,2]
[405999636,1771518545767,-300.0,8.544e-05,2]
[405999637,1771518545790,-300.0,8.544e-05,2]
[405999638,1771518545813,-300.0,8.544e-05,2]
[405999639,1771518545837,-300.0,8.544e-05,2]
[405999640,1771518545859,-300.0,8.544e-05,2]
[405999641,1771518545882,-300.0,8.544e-05,2]
[405999642,1771518545904,-1151.0,8.589e-05,2]
[405999643,1771518545923,-587.0,8.608e-05,2]
[405999644,1771518545944,-379.09085034,8.713e-05,2]
[405999645,1771518545966,-264.9502539,8.713e-05,2]
[405999646,1771518545990,-500.0,8.713e-05,2]
[405999647,1771518546013,-500.0,8.713e-05,2]
[405999648,1771518546033,-500.0,8.713e-05,2]
[405999649,1771518546057,-500.0,8.713e-05,2]
[405999650,1771518546080,-500.0,8.713e-05,2]
[405999651,1771518546105,-181.63050581,8.713e-05,2]
[405999652,1771518546129,-343.738999,8.713e-05,2]
[405999653,1771518546161,-600.0,8.714e-05,2]
[405999654,1771518546189,-287.0,8.719e-05,2]
[405999655,1771518546218,-287.0,8.72e-05,2]
[405999656,1771518546243,-526.0,9e-05,2]
[405999657,1771518546266,-823.0,9.039e-05,2]
[405999658,1771518546291,-1152.0,9.491e-05,2]
[405999659,1771518546321,-720.0,9.585e-05,2]
[405999660,1771518546346,-177.0,9.616e-05,2]
[405999661,1771518546373,-864.0,0.00010544,2]
[405999662,1771518546401,-1000.0,0.00011598,2]
[405999663,1771518546428,-204.0,0.00011616,2]
[405999664,1771518546457,-834.1449304,0.00012758,2]
[405999665,1771518565169,-5000.0,0.0001263,2]
[405999666,1771518565219,-165.8550696,0.00012758,2]
[405999667,1771518565265,-244.0,0.00012758,2]
[405999668,1771518565307,-3880.91903605,0.000129,2]
[405999669,1771518565347,-173.30166336,0.00013272,2]
[405999670,1771518565390,-500.0,0.00013273,2]
[405999671,1771518565430,-500.0,0.00013273,2]
[405999672,1771518565468,-500.0,0.00013273,2]
[405999673,1771518565505,-500.0,0.00013273,2]
[405999674,1771518565542,-500.0,0.00013273,2]
[405999675,1771518565578,-500.0,0.00013273,2]
[405999676,1771518565615,-500.0,0.00013273,2]
[405999677,1771518565650,-500.0,0.00013273,2]
[405999678,1771518565688,-500.0,0.00013273,2]
[405999679,1771518565723,-500.0,0.00013273,2]
[405999680,1771518565761,-500.0,0.00013273,2]
[405999681,1771518565798,-500.0,0.00013273,2]
[405999682,1771518565834,-500.0,0.00013273,2]
[405999683,1771518565869,-500.0,0.00013273,2]
[405999684,1771518565904,-500.0,0.00013273,2]
[405999685,1771518565940,-500.0,0.00013273,2]
[405999686,1771518565976,-500.0,0.00013273,2]
[405999687,1771518566013,-500.0,0.00013273,2]
[405999688,1771518566050,-500.0,0.00013273,2]
[405999689,1771518566088,-500.0,0.00013273,2]
[405999690,1771518566125,-500.0,0.00013273,2]
[405999691,1771518566164,-500.0,0.00013273,2]
[405999692,1771518566203,-500.0,0.00013273,2]
[405999693,1771518566241,-500.0,0.00013273,2]
[405999694,1771518566278,-500.0,0.00013273,2]
[405999695,1771518566454,-500.0,0.00013273,2]
[405999696,1771518566490,-500.0,0.00013273,2]
[405999697,1771518566524,-500.0,0.00013273,2]
[405999698,1771518566558,-506.2053778,0.00013273,2]
[405999699,1771518566593,-500.0,0.00013273,2]
[405999700,1771518566628,-500.0,0.00013273,2]
[405999701,1771518566664,-500.0,0.00013273,2]
[405999702,1771518566699,-2377.92351325,0.000135,2]
[405999703,1771518566735,-231.0,0.00013616,2]
[405999704,1771518566771,-150.0,0.00013673,2]
[405999705,1771518566807,-500.0,0.00013698,2]
[405999706,1771518566841,-500.0,0.00013698,2]
[405999707,1771518566876,-500.0,0.00013698,2]
[405999708,1771518566912,-500.0,0.00013698,2]
[405999709,1771518566949,-574.19,0.00013698,2]
[405999710,1771518566985,-1000.0,0.00013699,2]
[405999711,1771518567022,-200.9464998,0.00013699,2]
[405999712,1771518567059,-500.0,0.00013699,2]
[405999713,1771518567096,-500.0,0.00013699,2]
[405999714,1771518567133,-500.0,0.00013699,2]
[405999715,1771518567169,-500.0,0.00013699,2]
[405999716,1771518567206,-500.0,0.00013699,2]
[405999717,1771518567242,-500.0,0.00013699,2]
[405999718,1771518567277,-500.0,0.00013699,2]
[405999719,1771518567313,-500.0,0.00013699,2]
[405999720,1771518567348,-500.0,0.00013699,2]
[405999721,1771518567383,-500.0,0.00013699,2]
[405999722,1771518567420,-500.0,0.00013699,2]
[405999723,1771518567455,-500.0,0.00013699,2]
[405999724,1771518567491,-500.0,0.00013699,2]
[405999725,1771518567527,-150.0,0.00013699,2]
[405999726,1771518567564,-625.06993074,0.00013699,2]
[405999727,1771518567599,-500.0,0.00013699,2]
[405999728,1771518567635,-502.59898926,0.00013699,2]
[405999729,1771518567672,-500.0,0.00013699,2]
[405999730,1771518567713,-500.0,0.00013699,2]
[405999731,1771518567751,-500.0,0.00013699,2]
[405999732,1771518567790,-601.52424091,0.00013699,2]
[405999733,1771518567829,-500.0,0.00013699,2]
[405999734,1771518567868,-507.32591426,0.00013699,2]
[405999735,1771518567906,-500.0,0.00013699,2]
[405999736,1771518567943,-500.0,0.00013699,2]
[405999737,1771518567979,-500.0,0.00013699,2]
[405999738,1771518568014,-500.0,0.00013699,2]
[405999739,1771518568049,-500.0,0.00013699,2]
[405999740,1771518568085,-500.0,0.00013699,2]
[405999741,1771518568120,-500.0,0.00013699,2]
[405999742,1771518568156,-500.0,0.00013699,2]
[405999743,1771518568192,-500.0,0.00013699,2]
[405999744,1771518568229,-500.0,0.00013699,2]
[405999745,1771518568265,-500.0,0.00013699,2]
[405999746,1771518568300,-500.0,0.00013699,2]
[405999747,1771518568335,-500.0,0.00013699,2]
[405999748,1771518568370,-500.0,0.00013699,2]
[405999749,1771518568406,-500.0,0.00013699,2]
[405999750,1771518568441,-275.54974256,0.00013699,2]
[405999751,1771518568478,-500.0,0.00013699,2]
[405999752,1771518568515,-500.0,0.00013699,2]
[405999753,1771518568565,-500.0,0.00013699,2]
[405999754,1771518568602,-500.0,0.00013699,2]
[405999755,1771518568640,-500.0,0.00013699,2]
[405999756,1771518568676,-500.0,0.00013699,2]
[405999757,1771518568717,-500.0,0.00013699,2]
[405999758,1771518568759,-500.0,0.00013699,2]
[405999759,1771518568799,-334.44845079,0.00013699,2]
[405999760,1771518568836,-500.0,0.0001382,2]
[405999761,1771518568872,-500.0,0.0001382,2]
[405999762,1771518568907,-469.23411731,0.00013821,2]
[405999763,1771518568946,-1000.0,0.00013821,2]
[405999764,1771518568983,-1000.0,0.00013821,2]
[405999765,1771518569020,-1000.0,0.00013821,2]
[405999766,1771518569057,-399.60380523,0.00013821,2]
[405999767,1771518569095,-1000.0,0.00013821,2]
[405999768,1771518569131,-1000.0,0.00013821,2]
[405999769,1771518569168,-1000.0,0.00013821,2]
[405999770,1771518569206,-1000.0,0.00013821,2]
[405999771,1771518569243,-1000.0,0.00013821,2]
[405999772,1771518569282,-1000.0,0.00013821,2]
[405999773,1771518569322,-1000.0,0.00013821,2]
[405999774,1771518569360,-1000.0,0.00013821,2]
[405999775,1771518569397,-1000.0,0.00013821,2]
[405999776,1771518569434,-1000.0,0.00013821,2]
[405999777,1771518569472,-1000.0,0.00013821,2]
[405999778,1771518569517,-1000.0,0.00013821,2]
[405999779,1771518569556,-1000.0,0.00013821,2]
[405999780,1771518569594,-1000.0,0.00013821,2]
[405999781,1771518569632,-1000.0,0.00013821,2]
[405999782,1771518569671,-1000.0,0.00013821,2]
[405999783,1771518569713,-1011.49532492,0.00013821,2]
[405999784,1771518569752,-1000.0,0.00013821,2]
[405999785,1771518569793,-1000.0,0.00013821,2]
[405999786,1771518569832,-1000.0,0.00013821,2]
[405999787,1771518569871,-516.22723187,0.00013821,2]
[405999821,1771518631770,-750.3703429,0.00012379,2]
[405999824,1771518631789,-2199.39535977,0.00012379,2]
[405999826,1771518631800,-1040.47017,0.00012379,2]
[405999828,1771518631811,-960.32500001,0.00012379,2]
[405999872,1771518638002,-49.43912732,0.00012379,2]
[405999874,1771518638012,-5000.0,0.00012504,2]
[405999876,1771518638022,-500.0,0.00013273,2]
[405999877,1771518638031,-483.77276813,0.00013273,2]
[405999879,1771518638045,-300.0,0.00013673,2]
[405999882,1771518638055,-500.0,0.00013699,2]
[405999883,1771518638066,-336.31366331,0.00013699,2]
[405999885,1771518638077,-163.68633669,0.00013699,2]
[405999887,1771518638086,-500.0,0.00013699,2]
[405999889,1771518638096,-500.0,0.00013699,2]
[405999891,1771518638105,-500.0,0.00013699,2]
[405999893,1771518638115,-513.87088532,0.00013699,2]
[405999894,1771518638125,-500.0,0.00013699,2]
[405999897,1771518638135,-549.27539942,0.00013699,2]
[405999899,1771518638144,-500.0,0.00013699,2]
[405999902,1771518638154,-500.0,0.00013699,2]
[405999905,1771518638163,-289.02717724,0.00013699,2]
[405999907,1771518638172,-500.0,0.00013699,2]
[405999910,1771518638181,-500.0,0.00013699,2]
[405999913,1771518638190,-500.0,0.00013699,2]
[405999916,1771518638199,-500.0,0.00013699,2]
[405999918,1771518638208,-511.2163899,0.00013699,2]
[405999920,1771518638217,-500.0,0.00013699,2]
[405999922,1771518638226,-370.49427231,0.0001382,2]
[405999924,1771518638235,-1000.0,0.00013821,2]
[405999926,1771518638245,-1000.0,0.00013821,2]
[405999928,1771518638254,-1000.0,0.00013821,2]
[405999930,1771518638263,-1000.0,0.00013821,2]
[405999932,1771518638273,-1000.0,0.00013821,2]
[405999934,1771518638283,-1000.0,0.00013821,2]
[405999936,1771518638293,-1000.0,0.00013821,2]
[405999938,1771518638303,-1021.82024831,0.00013821,2]
[405999940,1771518638312,-300.0,0.00014096,2]
[405999942,1771518638322,-300.0,0.00014096,2]
[405999944,1771518638332,-300.0,0.00014096,2]
[405999946,1771518638341,-300.0,0.00014096,2]
[405999948,1771518638350,-300.0,0.00014096,2]
[405999950,1771518638360,-300.0,0.00014096,2]
[405999953,1771518638373,-300.0,0.00014096,2]
[405999954,1771518638383,-300.0,0.00014096,2]
[405999956,1771518638392,-300.0,0.00014096,2]
[405999958,1771518638402,-300.0,0.00014096,2]
[405999960,1771518638412,-300.0,0.00014096,2]
[405999963,1771518638425,-300.0,0.00014096,2]
[405999965,1771518638434,-300.0,0.00014096,2]
[405999967,1771518638443,-300.0,0.00014096,2]
[405999969,1771518638453,-300.0,0.00014096,2]
[405999971,1771518638462,-600.0,0.00014096,2]
[405999973,1771518638471,-300.0,0.00014221,2]
[405999974,1771518638480,-600.0,0.00014221,2]
[405999976,1771518638490,-500.0,0.00014246,2]
[405999977,1771518638500,-1000.0,0.00014247,2]
[405999979,1771518638510,-1000.0,0.00014247,2]
[405999981,1771518638519,-1000.0,0.00014247,2]
[405999983,1771518638528,-222.62075231,0.00014247,2]
[405999985,1771518638538,-1000.0,0.00014247,2]
[405999987,1771518638548,-1000.0,0.00014247,2]
[405999989,1771518638557,-1000.0,0.00014247,2]
[405999991,1771518638567,-1000.0,0.00014247,2]
[405999993,1771518638577,-1000.0,0.00014247,2]
[405999994,1771518638587,-990.66978686,0.00014247,2]
[405999995,1771518638596,-676.99223589,0.00014247,2]
[405999996,1771518638605,-200.0,0.00014247,2]
[405999997,1771518638614,-1000.0,0.00014247,2]
[405999998,1771518638623,-1000.0,0.00014247,2]
[405999999,1771518638631,-1000.0,0.00014247,2]
[406000000,1771518638640,-1000.0,0.00014247,2]